[Event "Titled Tuesday Blitz January 03 Late 2023"]
[White "Aung Thant Zin"]
[Black "Pesotskiy, Mikhail"]
[WhiteFideId "13000063"]
[BlackFideId "34164453"]
[WhiteElo "2268"]
[BlackElo "2153"]
[Result "0-1"]
[Round "02"]
[TimeControl "180+2"]
[Date "2023.01.03"]
[WhiteClock "0:00:04"]
[BlackClock "0:00:14"]

1. e4 {[%clk 0:02:59]}  e6 {[%clk 0:01:39]} 2. d4 {[%clk 0:02:58]}  d5 {[%clk 0:01:38]} 3. Nc3 {[%clk 0:02:57]}  Nc6 {[%clk 0:01:37]} 4. Nf3 {[%clk 0:02:57]}  Nf6 {[%clk 0:01:37]} 5. Bg5 {[%clk 0:02:51]}  Be7 {[%clk 0:01:36]} 6. Bxf6 {[%clk 0:02:49]}  Bxf6 {[%clk 0:01:37]} 7. e5 {[%clk 0:02:49]}  Be7 {[%clk 0:01:38]} 8. a3 {[%clk 0:02:48]}  f6 {[%clk 0:01:34]} 9. Bb5 {[%clk 0:02:44]}  Bd7 {[%clk 0:01:31]} 10. Bxc6 {[%clk 0:02:42]}  Bxc6 {[%clk 0:01:32]} 11. Qe2 {[%clk 0:02:37]}  f5 {[%clk 0:01:21]} 12. O-O {[%clk 0:01:42]}  O-O {[%clk 0:01:17]} 13. Qd3 {[%clk 0:01:36]}  Qd7 {[%clk 0:01:15]} 14. Ne2 {[%clk 0:01:31]}  Bb5 {[%clk 0:01:15]} 15. Qd2 {[%clk 0:01:31]}  c5 {[%clk 0:01:15]} 16. c3 {[%clk 0:01:31]}  Rac8 {[%clk 0:01:14]} 17. Rac1 {[%clk 0:01:26]}  Rc7 {[%clk 0:01:14]} 18. Rfe1 {[%clk 0:01:25]}  Bxe2 {[%clk 0:01:13]} 19. Qxe2 {[%clk 0:01:23]}  Rfc8 {[%clk 0:01:14]} 20. h3 {[%clk 0:01:19]}  b5 {[%clk 0:01:07]} 21. dxc5 {[%clk 0:01:13]}  Bxc5 {[%clk 0:01:03]} 22. Rcd1 {[%clk 0:01:04]}  a5 {[%clk 0:01:02]} 23. Qd2 {[%clk 0:00:54]}  Be7 {[%clk 0:01:00]} 24. Nd4 {[%clk 0:00:49]}  Rc4 {[%clk 0:00:57]} 25. Nc2 {[%clk 0:00:46]}  b4 {[%clk 0:00:45]} 26. axb4 {[%clk 0:00:43]}  axb4 {[%clk 0:00:45]} 27. Nxb4 {[%clk 0:00:36]}  Bxb4 {[%clk 0:00:44]} 28. cxb4 {[%clk 0:00:36]}  Rc2 {[%clk 0:00:39]} 29. Qd4 {[%clk 0:00:30]}  R8c4 {[%clk 0:00:39]} 30. Qb6 {[%clk 0:00:30]}  Rxb2 {[%clk 0:00:39]} 31. Qb8+ {[%clk 0:00:14]}  Qc8 {[%clk 0:00:32]} 32. Qd6 {[%clk 0:00:12]}  Rbxb4 {[%clk 0:00:25]} 33. Ra1 {[%clk 0:00:11]}  Rb7 {[%clk 0:00:13]} 34. Ra6 {[%clk 0:00:08]}  Kf7 {[%clk 0:00:14]} 35. Rea1 {[%clk 0:00:04]}  Qd7 {[%clk 0:00:14]} 0-1


[Site "https://www.chess.com"]

[Event "Titled Tuesday Blitz January 03 Late 2023"]
[White "Ansh M Shah"]
[Black "Calcada, Lucas Galvan"]
[WhiteFideId "25033379"]
[BlackFideId "22746099"]
[WhiteElo "2171"]
[BlackElo "1739"]
[Result "1-0"]
[Round "02"]
[TimeControl "180+2"]
[Date "2023.01.03"]
[WhiteClock "0:00:06"]
[BlackClock "0:00:18"]

1. d4 {[%clk 0:03:00]}  Nf6 {[%clk 0:02:57]} 2. c4 {[%clk 0:03:01]}  g6 {[%clk 0:02:53]} 3. h4 {[%clk 0:03:01]}  h5 {[%clk 0:02:48]} 4. Nc3 {[%clk 0:03:01]}  d6 {[%clk 0:02:45]} 5. e4 {[%clk 0:03:01]}  Bg7 {[%clk 0:02:45]} 6. Be2 {[%clk 0:03:02]}  c5 {[%clk 0:02:41]} 7. d5 {[%clk 0:03:02]}  e6 {[%clk 0:02:40]} 8. Nf3 {[%clk 0:03:01]}  exd5 {[%clk 0:02:40]} 9. exd5 {[%clk 0:03:02]}  O-O {[%clk 0:02:39]} 10. Bf4 {[%clk 0:03:03]}  a6 {[%clk 0:02:38]} 11. a4 {[%clk 0:03:02]}  Qc7 {[%clk 0:02:37]} 12. O-O {[%clk 0:02:59]}  Bg4 {[%clk 0:02:37]} 13. Ng5 {[%clk 0:02:58]}  Bxe2 {[%clk 0:02:26]} 14. Qxe2 {[%clk 0:02:59]}  Ng4 {[%clk 0:02:21]} 15. Rfe1 {[%clk 0:02:50]}  Ne5 {[%clk 0:02:11]} 16. Nce4 {[%clk 0:02:04]}  Nbd7 {[%clk 0:02:10]} 17. Nf3 {[%clk 0:01:36]}  Rae8 {[%clk 0:02:07]} 18. Nxe5 {[%clk 0:01:35]}  Nxe5 {[%clk 0:02:05]} 19. Qc2 {[%clk 0:01:33]}  Qd7 {[%clk 0:01:56]} 20. Re2 {[%clk 0:01:29]}  Rb8 {[%clk 0:01:19]} 21. Rae1 {[%clk 0:00:43]}  b5 {[%clk 0:01:03]} 22. axb5 {[%clk 0:00:40]}  axb5 {[%clk 0:01:03]} 23. cxb5 {[%clk 0:00:23]}  Rfe8 {[%clk 0:00:55]} 24. Nxc5 {[%clk 0:00:20]}  dxc5 {[%clk 0:00:51]} 25. Bxe5 {[%clk 0:00:19]}  Bxe5 {[%clk 0:00:47]} 26. Rxe5 {[%clk 0:00:20]}  Rxe5 {[%clk 0:00:46]} 27. Rxe5 {[%clk 0:00:21]}  Rxb5 {[%clk 0:00:47]} 28. Qe2 {[%clk 0:00:20]}  Rb4 {[%clk 0:00:28]} 29. Re8+ {[%clk 0:00:19]}  Kh7 {[%clk 0:00:24]} 30. Re7 {[%clk 0:00:13]}  Qf5 {[%clk 0:00:23]} 31. d6 {[%clk 0:00:09]}  Qb1+ {[%clk 0:00:22]} 32. Qe1 {[%clk 0:00:09]}  Qxe1+ {[%clk 0:00:20]} 33. Rxe1 {[%clk 0:00:08]}  Rd4 {[%clk 0:00:20]} 34. Rc1 {[%clk 0:00:09]}  Rxd6 {[%clk 0:00:18]} 35. Rxc5 {[%clk 0:00:09]}  Rd1+ {[%clk 0:00:18]} 36. Kh2 {[%clk 0:00:09]}  Rd2 {[%clk 0:00:19]} 37. Rb5 {[%clk 0:00:06]}  Rxf2 {[%clk 0:00:18]} 38. Rb7 {[%clk 0:00:07]}  Kg7 {[%clk 0:00:18]} 39. Kg3 {[%clk 0:00:07]}  Rxb2 {[%clk 0:00:18]} 40. Rxb2 {[%clk 0:00:06]} 1-0


[Site "https://www.chess.com"]

[Event "Titled Tuesday Blitz January 03 Late 2023"]
[White "AKINSEYE, Akinleye"]
[Black "Tymrakiewicz, Rafal"]
[WhiteFideId "8504458"]
[BlackFideId "1108832"]
[WhiteElo "1797"]
[BlackElo "2144"]
[Result "0-1"]
[Round "02"]
[TimeControl "180+2"]
[Date "2023.01.03"]
[WhiteClock "0:00:12"]
[BlackClock "0:00:19"]

1. e4 {[%clk 0:03:00]}  Nf6 {[%clk 0:02:58]} 2. Nc3 {[%clk 0:02:57]}  d5 {[%clk 0:02:58]} 3. exd5 {[%clk 0:02:57]}  Nxd5 {[%clk 0:02:58]} 4. Nxd5 {[%clk 0:02:57]}  Qxd5 {[%clk 0:02:57]} 5. c3 {[%clk 0:02:53]}  e5 {[%clk 0:02:55]} 6. Ne2 {[%clk 0:02:50]}  Nc6 {[%clk 0:02:54]} 7. Qb3 {[%clk 0:02:46]}  Qxb3 {[%clk 0:02:40]} 8. axb3 {[%clk 0:02:45]}  Be6 {[%clk 0:02:41]} 9. b4 {[%clk 0:02:44]}  Be7 {[%clk 0:02:34]} 10. Ng3 {[%clk 0:02:44]}  O-O {[%clk 0:02:33]} 11. Be2 {[%clk 0:02:43]}  a5 {[%clk 0:02:25]} 12. bxa5 {[%clk 0:02:41]}  Rxa5 {[%clk 0:02:24]} 13. Rxa5 {[%clk 0:02:41]}  Nxa5 {[%clk 0:02:25]} 14. O-O {[%clk 0:02:39]}  Nb3 {[%clk 0:02:22]} 15. d3 {[%clk 0:02:27]}  f5 {[%clk 0:02:22]} 16. Re1 {[%clk 0:02:19]}  Bd6 {[%clk 0:02:20]} 17. Nf1 {[%clk 0:02:14]}  Ra8 {[%clk 0:02:17]} 18. Nd2 {[%clk 0:02:11]}  Nxc1 {[%clk 0:02:13]} 19. Rxc1 {[%clk 0:02:11]}  Ra2 {[%clk 0:02:13]} 20. Rb1 {[%clk 0:02:08]}  b5 {[%clk 0:02:07]} 21. d4 {[%clk 0:02:08]}  exd4 {[%clk 0:01:54]} 22. cxd4 {[%clk 0:02:09]}  c6 {[%clk 0:01:52]} 23. Bf3 {[%clk 0:01:59]}  Bd7 {[%clk 0:01:51]} 24. d5 {[%clk 0:01:56]}  c5 {[%clk 0:01:51]} 25. Nb3 {[%clk 0:01:40]}  Kf7 {[%clk 0:01:45]} 26. Nc1 {[%clk 0:01:40]}  Ra7 {[%clk 0:01:42]} 27. Nd3 {[%clk 0:01:37]}  c4 {[%clk 0:01:41]} 28. Ne1 {[%clk 0:01:30]}  b4 {[%clk 0:01:41]} 29. Rc1 {[%clk 0:01:24]}  Rc7 {[%clk 0:01:20]} 30. Be2 {[%clk 0:01:18]}  c3 {[%clk 0:01:17]} 31. bxc3 {[%clk 0:01:17]}  bxc3 {[%clk 0:01:17]} 32. Bd3 {[%clk 0:01:15]}  Ba3 {[%clk 0:01:11]} 33. Rc2 {[%clk 0:01:14]}  Bb2 {[%clk 0:01:07]} 34. Nf3 {[%clk 0:01:09]}  Ba4 {[%clk 0:01:05]} 35. d6 {[%clk 0:01:04]}  Ra7 {[%clk 0:00:47]} 36. Re2 {[%clk 0:00:45]}  Ba3 {[%clk 0:00:30]} 37. Bxf5 {[%clk 0:00:22]}  Bxd6 {[%clk 0:00:25]} 38. g3 {[%clk 0:00:20]}  Bc6 {[%clk 0:00:20]} 39. Ne1 {[%clk 0:00:14]}  Ra1 {[%clk 0:00:19]} 40. f4 {[%clk 0:00:13]}  Bc5+ {[%clk 0:00:18]} 41. Kf1 {[%clk 0:00:12]}  Bb5 {[%clk 0:00:19]} 42. Bd3 {[%clk 0:00:12]}  Bxd3 {[%clk 0:00:19]} 0-1


[Site "https://www.chess.com"]

[Event "Titled Tuesday Blitz January 03 Late 2023"]
[White "Mazurkiewicz, Michal"]
[Black "Dias, Joao Batista"]
[WhiteFideId "1124943"]
[BlackFideId "2108240"]
[WhiteElo "2145"]
[BlackElo "1796"]
[Result "1-0"]
[Round "02"]
[TimeControl "180+2"]
[Date "2023.01.03"]
[WhiteClock "0:02:37"]
[BlackClock "0:02:21"]

1. e4 {[%clk 0:03:00]}  e5 {[%clk 0:02:59]} 2. Nf3 {[%clk 0:03:01]}  Nc6 {[%clk 0:02:57]} 3. Bb5 {[%clk 0:03:01]}  Nf6 {[%clk 0:02:49]} 4. O-O {[%clk 0:03:00]}  d6 {[%clk 0:02:48]} 5. d4 {[%clk 0:02:59]}  exd4 {[%clk 0:02:48]} 6. Nxd4 {[%clk 0:02:59]}  Bd7 {[%clk 0:02:48]} 7. Bxc6 {[%clk 0:02:59]}  bxc6 {[%clk 0:02:48]} 8. Qf3 {[%clk 0:03:00]}  Be7 {[%clk 0:02:47]} 9. e5 {[%clk 0:02:59]}  dxe5 {[%clk 0:02:45]} 10. Nxc6 {[%clk 0:02:59]}  Bxc6 {[%clk 0:02:42]} 11. Qxc6+ {[%clk 0:03:00]}  Kf8 {[%clk 0:02:40]} 12. Nc3 {[%clk 0:03:00]}  h5 {[%clk 0:02:36]} 13. Rd1 {[%clk 0:02:58]}  Qc8 {[%clk 0:02:35]} 14. Bg5 {[%clk 0:02:56]}  h4 {[%clk 0:02:33]} 15. h3 {[%clk 0:02:49]}  Rh5 {[%clk 0:02:32]} 16. Bxf6 {[%clk 0:02:48]}  Bxf6 {[%clk 0:02:30]} 17. Rd7 {[%clk 0:02:47]}  Rb8 {[%clk 0:02:25]} 18. Rad1 {[%clk 0:02:40]}  Qb7 {[%clk 0:02:21]} 19. Rd8+ {[%clk 0:02:37]} 1-0


[Site "https://www.chess.com"]

[Event "Titled Tuesday Blitz January 03 Late 2023"]
[White "benny_aizenberg"]
[Black "Lutz, Igor Oscar"]
[BlackFideId "2110806"]
[WhiteElo "2507"]
[BlackElo "1969"]
[Result "1-0"]
[Round "02"]
[TimeControl "180+2"]
[Date "2023.01.03"]
[WhiteClock "0:02:18"]
[BlackClock "0:00:44"]

1. e4 {[%clk 0:03:00]}  c5 {[%clk 0:02:54]} 2. Nf3 {[%clk 0:02:59]}  e6 {[%clk 0:02:52]} 3. d4 {[%clk 0:02:59]}  cxd4 {[%clk 0:02:53]} 4. Nxd4 {[%clk 0:03:00]}  Nf6 {[%clk 0:02:54]} 5. Nc3 {[%clk 0:02:59]}  d6 {[%clk 0:02:54]} 6. Be3 {[%clk 0:02:57]}  Nc6 {[%clk 0:02:55]} 7. f4 {[%clk 0:02:57]}  Be7 {[%clk 0:02:54]} 8. Qf3 {[%clk 0:02:57]}  e5 {[%clk 0:02:51]} 9. Nxc6 {[%clk 0:02:53]}  bxc6 {[%clk 0:02:50]} 10. f5 {[%clk 0:02:52]}  Bb7 {[%clk 0:02:42]} 11. g4 {[%clk 0:02:49]}  h6 {[%clk 0:02:38]} 12. O-O-O {[%clk 0:02:47]}  Qa5 {[%clk 0:02:37]} 13. h4 {[%clk 0:02:45]}  Rb8 {[%clk 0:02:24]} 14. g5 {[%clk 0:02:45]}  hxg5 {[%clk 0:02:24]} 15. hxg5 {[%clk 0:02:45]}  Rxh1 {[%clk 0:02:23]} 16. Qxh1 {[%clk 0:02:40]}  Ng8 {[%clk 0:02:04]} 17. Qh7 {[%clk 0:02:37]}  Kf8 {[%clk 0:01:50]} 18. Bc4 {[%clk 0:02:36]}  d5 {[%clk 0:01:37]} 19. exd5 {[%clk 0:02:32]}  cxd5 {[%clk 0:01:37]} 20. Nxd5 {[%clk 0:02:32]}  Rd8 {[%clk 0:01:15]} 21. f6 {[%clk 0:02:25]}  Bxd5 {[%clk 0:00:43]} 22. Qxg7+ {[%clk 0:02:24]}  Ke8 {[%clk 0:00:43]} 23. Qxg8+ {[%clk 0:02:23]}  Kd7 {[%clk 0:00:44]} 24. Rxd5+ {[%clk 0:02:18]} 1-0


[Site "https://www.chess.com"]

[Event "Titled Tuesday Blitz January 03 Late 2023"]
[White "Novikov, Evgenij"]
[Black "Munoz Misselis, Nelson Carlos"]
[WhiteFideId "4125380"]
[BlackFideId "6601790"]
[WhiteElo "2276"]
[BlackElo "1730"]
[Result "1-0"]
[Round "02"]
[TimeControl "180+2"]
[Date "2023.01.03"]
[WhiteClock "0:00:24"]
[BlackClock "0:00:41"]

1. e4 {[%clk 0:03:00]}  d6 {[%clk 0:02:59]} 2. d4 {[%clk 0:02:55]}  Nf6 {[%clk 0:02:57]} 3. Nc3 {[%clk 0:02:53]}  e5 {[%clk 0:02:57]} 4. Nf3 {[%clk 0:02:51]}  Nbd7 {[%clk 0:02:56]} 5. Bc4 {[%clk 0:02:51]}  Be7 {[%clk 0:02:56]} 6. g4 {[%clk 0:02:51]}  g6 {[%clk 0:02:55]} 7. Rg1 {[%clk 0:02:49]}  O-O {[%clk 0:02:54]} 8. Bh6 {[%clk 0:02:47]}  Re8 {[%clk 0:02:53]} 9. Bxf7+ {[%clk 0:02:39]}  Kxf7 {[%clk 0:02:52]} 10. Ng5+ {[%clk 0:02:39]}  Kg8 {[%clk 0:02:52]} 11. Ne6 {[%clk 0:02:39]}  Nb6 {[%clk 0:02:47]} 12. Nxd8 {[%clk 0:02:39]}  Bxd8 {[%clk 0:02:47]} 13. dxe5 {[%clk 0:02:21]}  Rxe5 {[%clk 0:02:47]} 14. Bf4 {[%clk 0:02:15]}  Re8 {[%clk 0:02:46]} 15. Qd3 {[%clk 0:02:05]}  Nxg4 {[%clk 0:02:32]} 16. f3 {[%clk 0:01:49]}  Ne5 {[%clk 0:02:31]} 17. Bxe5 {[%clk 0:01:45]}  Rxe5 {[%clk 0:02:30]} 18. O-O-O {[%clk 0:01:45]}  Be6 {[%clk 0:02:28]} 19. f4 {[%clk 0:01:39]}  Ra5 {[%clk 0:02:20]} 20. f5 {[%clk 0:01:37]}  Bf7 {[%clk 0:02:16]} 21. fxg6 {[%clk 0:01:37]}  hxg6 {[%clk 0:02:11]} 22. Nd5 {[%clk 0:01:35]}  c6 {[%clk 0:02:03]} 23. Nf4 {[%clk 0:01:28]}  g5 {[%clk 0:01:51]} 24. h4 {[%clk 0:01:14]}  Rxa2 {[%clk 0:01:49]} 25. hxg5 {[%clk 0:01:07]}  Ra1+ {[%clk 0:01:42]} 26. Kd2 {[%clk 0:01:07]}  Rxd1+ {[%clk 0:01:39]} 27. Kxd1 {[%clk 0:01:05]}  Nc4 {[%clk 0:01:38]} 28. Qc3 {[%clk 0:00:56]}  Ba5 {[%clk 0:01:26]} 29. Qf6 {[%clk 0:00:53]}  Ne3+ {[%clk 0:01:07]} 30. Kc1 {[%clk 0:00:45]}  Rf8 {[%clk 0:00:56]} 31. Rh1 {[%clk 0:00:36]}  Bh5 {[%clk 0:00:51]} 32. Qe6+ {[%clk 0:00:27]}  Bf7 {[%clk 0:00:49]} 33. Qh6 {[%clk 0:00:24]}  Bc4 {[%clk 0:00:41]} 34. Qh7# {[%clk 0:00:24]} 1-0


[Site "https://www.chess.com"]

[Event "Titled Tuesday Blitz January 03 Late 2023"]
[White "Della Corte, Alessandro"]
[Black "Desideri, Ricardo Maruchi"]
[WhiteFideId "813540"]
[BlackFideId "2110440"]
[WhiteElo "2160"]
[BlackElo "1959"]
[Result "1-0"]
[Round "02"]
[TimeControl "180+2"]
[Date "2023.01.03"]
[WhiteClock "0:02:19"]
[BlackClock "0:00:03"]

1. d4 {[%clk 0:03:00]}  Nf6 {[%clk 0:02:58]} 2. c4 {[%clk 0:03:01]}  c5 {[%clk 0:02:58]} 3. d5 {[%clk 0:03:00]}  e6 {[%clk 0:02:59]} 4. Nc3 {[%clk 0:03:00]}  exd5 {[%clk 0:03:00]} 5. cxd5 {[%clk 0:03:01]}  d6 {[%clk 0:02:59]} 6. e4 {[%clk 0:03:01]}  g6 {[%clk 0:03:00]} 7. h3 {[%clk 0:03:02]}  Bg7 {[%clk 0:02:59]} 8. Nf3 {[%clk 0:03:02]}  O-O {[%clk 0:02:58]} 9. Bd3 {[%clk 0:03:03]}  Na6 {[%clk 0:02:57]} 10. O-O {[%clk 0:03:03]}  Nb4 {[%clk 0:02:58]} 11. Bb1 {[%clk 0:03:00]}  Re8 {[%clk 0:02:50]} 12. Re1 {[%clk 0:03:00]}  Rb8 {[%clk 0:02:39]} 13. Bf4 {[%clk 0:03:00]}  b5 {[%clk 0:02:32]} 14. a3 {[%clk 0:02:57]}  Na6 {[%clk 0:02:31]} 15. Qd2 {[%clk 0:02:57]}  Nc7 {[%clk 0:02:26]} 16. Bc2 {[%clk 0:02:53]}  a5 {[%clk 0:02:26]} 17. Rad1 {[%clk 0:02:52]}  Na8 {[%clk 0:01:22]} 18. e5 {[%clk 0:02:48]}  dxe5 {[%clk 0:01:11]} 19. Nxe5 {[%clk 0:02:47]}  Bd7 {[%clk 0:00:51]} 20. Nxd7 {[%clk 0:02:46]}  Qxd7 {[%clk 0:00:48]} 21. Bxb8 {[%clk 0:02:45]}  Rxb8 {[%clk 0:00:49]} 22. d6 {[%clk 0:02:38]}  Nb6 {[%clk 0:00:46]} 23. Re7 {[%clk 0:02:37]}  Qc6 {[%clk 0:00:06]} 24. Rc7 {[%clk 0:02:35]}  Qe8 {[%clk 0:00:03]} 25. Re1 {[%clk 0:02:19]} 1-0


[Site "https://www.chess.com"]

[Event "Titled Tuesday Blitz January 03 Late 2023"]
[White "Kobalia, Mikhail"]
[Black "Nakamura, Hikaru"]
[WhiteFideId "4119150"]
[BlackFideId "2016192"]
[WhiteElo "2578"]
[BlackElo "2775"]
[Result "0-1"]
[Round "03"]
[TimeControl "180+2"]
[Date "2023.01.03"]
[WhiteClock "0:00:02"]
[BlackClock "0:00:30"]

1. e4 {[%clk 0:03:00]}  c6 {[%clk 0:02:57]} 2. d4 {[%clk 0:03:00]}  d5 {[%clk 0:02:57]} 3. exd5 {[%clk 0:03:00]}  Qxd5 {[%clk 0:02:56]} 4. Nf3 {[%clk 0:02:58]}  Nf6 {[%clk 0:02:55]} 5. c4 {[%clk 0:02:55]}  Qa5+ {[%clk 0:02:54]} 6. Nc3 {[%clk 0:02:47]}  g6 {[%clk 0:02:50]} 7. h3 {[%clk 0:02:43]}  Bg7 {[%clk 0:02:49]} 8. Be2 {[%clk 0:02:43]}  Ne4 {[%clk 0:02:49]} 9. Qb3 {[%clk 0:02:30]}  O-O {[%clk 0:02:46]} 10. O-O {[%clk 0:02:30]}  Nxc3 {[%clk 0:02:47]} 11. bxc3 {[%clk 0:02:29]}  c5 {[%clk 0:02:46]} 12. Bf4 {[%clk 0:01:54]}  Nd7 {[%clk 0:02:42]} 13. Rfe1 {[%clk 0:01:50]}  b6 {[%clk 0:02:38]} 14. Bd3 {[%clk 0:01:49]}  Bb7 {[%clk 0:02:31]} 15. Rxe7 {[%clk 0:01:48]}  Bxf3 {[%clk 0:02:30]} 16. Rxd7 {[%clk 0:01:47]}  Bc6 {[%clk 0:02:30]} 17. Rd6 {[%clk 0:01:43]}  Rac8 {[%clk 0:02:30]} 18. a4 {[%clk 0:01:33]}  Rfd8 {[%clk 0:02:20]} 19. Rxd8+ {[%clk 0:01:26]}  Rxd8 {[%clk 0:02:21]} 20. d5 {[%clk 0:01:26]}  Bd7 {[%clk 0:02:18]} 21. Bd2 {[%clk 0:01:11]}  Re8 {[%clk 0:02:16]} 22. Kf1 {[%clk 0:01:08]}  Be5 {[%clk 0:02:14]} 23. Bc2 {[%clk 0:01:06]}  Bd6 {[%clk 0:02:08]} 24. Re1 {[%clk 0:01:05]}  Rxe1+ {[%clk 0:02:08]} 25. Kxe1 {[%clk 0:01:03]}  Qa6 {[%clk 0:02:08]} 26. Kf1 {[%clk 0:00:58]}  f5 {[%clk 0:02:08]} 27. Kg1 {[%clk 0:00:53]}  Kf7 {[%clk 0:02:02]} 28. Qa2 {[%clk 0:00:52]}  Be5 {[%clk 0:02:00]} 29. Bb3 {[%clk 0:00:50]}  Bd6 {[%clk 0:01:56]} 30. Qc2 {[%clk 0:00:49]}  Qc8 {[%clk 0:01:54]} 31. Qd1 {[%clk 0:00:43]}  Qe8 {[%clk 0:01:54]} 32. Kf1 {[%clk 0:00:41]}  Qe5 {[%clk 0:01:44]} 33. f4 {[%clk 0:00:33]}  Qe8 {[%clk 0:01:39]} 34. Qe2 {[%clk 0:00:23]}  Qb8 {[%clk 0:01:38]} 35. g3 {[%clk 0:00:21]}  Qc8 {[%clk 0:01:37]} 36. h4 {[%clk 0:00:21]}  Qg8 {[%clk 0:01:34]} 37. Bc2 {[%clk 0:00:20]}  Kf6 {[%clk 0:01:33]} 38. Kg2 {[%clk 0:00:20]}  Bc8 {[%clk 0:01:32]} 39. Bb3 {[%clk 0:00:20]}  Qf8 {[%clk 0:01:32]} 40. Bc2 {[%clk 0:00:20]}  Qd8 {[%clk 0:01:32]} 41. Bb3 {[%clk 0:00:20]}  Kf7 {[%clk 0:01:33]} 42. Bc2 {[%clk 0:00:20]}  Qd7 {[%clk 0:01:32]} 43. Bb3 {[%clk 0:00:20]}  Bb7 {[%clk 0:01:31]} 44. Bc2 {[%clk 0:00:20]}  Ba6 {[%clk 0:01:30]} 45. Bb3 {[%clk 0:00:19]}  Kf8 {[%clk 0:01:29]} 46. Kf2 {[%clk 0:00:19]}  Kg8 {[%clk 0:01:29]} 47. Bc2 {[%clk 0:00:20]}  Bf8 {[%clk 0:01:28]} 48. Bb3 {[%clk 0:00:20]}  Bg7 {[%clk 0:01:28]} 49. Bc2 {[%clk 0:00:20]}  Kf7 {[%clk 0:01:28]} 50. Bb3 {[%clk 0:00:20]}  Bc8 {[%clk 0:01:27]} 51. Bc2 {[%clk 0:00:20]}  Qd6 {[%clk 0:01:28]} 52. Bb3 {[%clk 0:00:20]}  Bd7 {[%clk 0:01:28]} 53. Bc2 {[%clk 0:00:20]}  Bf6 {[%clk 0:01:29]} 54. Bb3 {[%clk 0:00:19]}  Be7 {[%clk 0:01:29]} 55. Bc2 {[%clk 0:00:20]}  Qf6 {[%clk 0:01:30]} 56. Bb3 {[%clk 0:00:18]}  Ke8 {[%clk 0:01:30]} 57. Qe5 {[%clk 0:00:18]}  a5 {[%clk 0:01:21]} 58. Bc2 {[%clk 0:00:16]}  Kf7 {[%clk 0:01:20]} 59. Bb3 {[%clk 0:00:13]}  h6 {[%clk 0:01:20]} 60. Bc2 {[%clk 0:00:12]}  Bd6 {[%clk 0:01:20]} 61. Qxf6+ {[%clk 0:00:12]}  Kxf6 {[%clk 0:01:21]} 62. Kf3 {[%clk 0:00:12]}  Be8 {[%clk 0:01:21]} 63. Kf2 {[%clk 0:00:12]}  Bf7 {[%clk 0:01:22]} 64. Kf3 {[%clk 0:00:12]}  Ke7 {[%clk 0:01:23]} 65. Kf2 {[%clk 0:00:12]}  Kd7 {[%clk 0:01:23]} 66. Kf3 {[%clk 0:00:13]}  Be7 {[%clk 0:01:24]} 67. Kf2 {[%clk 0:00:13]}  Kd6 {[%clk 0:01:24]} 68. Kf3 {[%clk 0:00:13]}  Bf6 {[%clk 0:01:25]} 69. Kf2 {[%clk 0:00:13]}  Be8 {[%clk 0:01:26]} 70. Kf3 {[%clk 0:00:14]}  Bd7 {[%clk 0:01:26]} 71. Kf2 {[%clk 0:00:14]}  Ke7 {[%clk 0:01:27]} 72. Kf3 {[%clk 0:00:15]}  Kf7 {[%clk 0:01:28]} 73. Kf2 {[%clk 0:00:15]}  Bd8 {[%clk 0:01:28]} 74. Kf3 {[%clk 0:00:15]}  Kg7 {[%clk 0:01:29]} 75. Kf2 {[%clk 0:00:16]}  Bc7 {[%clk 0:01:28]} 76. Kf3 {[%clk 0:00:16]}  Be8 {[%clk 0:01:29]} 77. Kf2 {[%clk 0:00:16]}  Bd6 {[%clk 0:01:28]} 78. Kf3 {[%clk 0:00:16]}  Bd7 {[%clk 0:01:28]} 79. Kf2 {[%clk 0:00:17]}  Bc8 {[%clk 0:01:29]} 80. Kf3 {[%clk 0:00:17]}  Be7 {[%clk 0:01:30]} 81. Kf2 {[%clk 0:00:18]}  Bf6 {[%clk 0:01:30]} 82. Kf3 {[%clk 0:00:19]}  Ba6 {[%clk 0:01:31]} 83. Kf2 {[%clk 0:00:19]}  Bxc4 {[%clk 0:01:31]} 84. d6 {[%clk 0:00:18]}  Be6 {[%clk 0:01:29]} 85. Bd3 {[%clk 0:00:16]}  Bd7 {[%clk 0:01:26]} 86. Bc2 {[%clk 0:00:15]}  Kf7 {[%clk 0:01:25]} 87. c4 {[%clk 0:00:15]}  Ke6 {[%clk 0:01:21]} 88. Bb3 {[%clk 0:00:14]}  Kxd6 {[%clk 0:01:20]} 89. Be3 {[%clk 0:00:14]}  Be6 {[%clk 0:01:21]} 90. Ke2 {[%clk 0:00:14]}  Bf7 {[%clk 0:01:21]} 91. Kd3 {[%clk 0:00:14]}  Be8 {[%clk 0:01:21]} 92. Ke2 {[%clk 0:00:14]}  Bc6 {[%clk 0:01:22]} 93. Kd3 {[%clk 0:00:14]}  Be4+ {[%clk 0:01:21]} 94. Ke2 {[%clk 0:00:14]}  Bd4 {[%clk 0:01:22]} 95. Kf2 {[%clk 0:00:13]}  Ke7 {[%clk 0:01:19]} 96. Ke2 {[%clk 0:00:13]}  Kf6 {[%clk 0:01:20]} 97. Bd2 {[%clk 0:00:13]}  Bc6 {[%clk 0:01:18]} 98. Bc1 {[%clk 0:00:13]}  Kg7 {[%clk 0:01:18]} 99. Bd2 {[%clk 0:00:13]}  Bf6 {[%clk 0:01:19]} 100. Be3 {[%clk 0:00:13]}  Kf8 {[%clk 0:01:19]} 101. Bd2 {[%clk 0:00:13]}  Bd8 {[%clk 0:01:19]} 102. Kf2 {[%clk 0:00:13]}  Be4 {[%clk 0:01:19]} 103. Ke2 {[%clk 0:00:13]}  Kf7 {[%clk 0:01:18]} 104. Kf2 {[%clk 0:00:12]}  Bf6 {[%clk 0:01:15]} 105. Ke2 {[%clk 0:00:12]}  Bb2 {[%clk 0:01:10]} 106. Kf2 {[%clk 0:00:12]}  Ba3 {[%clk 0:01:10]} 107. Ke2 {[%clk 0:00:12]}  Bb4 {[%clk 0:01:10]} 108. Bc1 {[%clk 0:00:12]}  Bc3 {[%clk 0:01:11]} 109. Kf2 {[%clk 0:00:11]}  Kf6 {[%clk 0:01:06]} 110. Ke2 {[%clk 0:00:11]}  Bd4 {[%clk 0:01:04]} 111. Kf1 {[%clk 0:00:10]}  Bd3+ {[%clk 0:01:03]} 112. Kg2 {[%clk 0:00:10]}  Be2 {[%clk 0:01:03]} 113. Bd2 {[%clk 0:00:10]}  Kg7 {[%clk 0:01:00]} 114. Bc1 {[%clk 0:00:10]}  g5 {[%clk 0:01:00]} 115. fxg5 {[%clk 0:00:09]}  hxg5 {[%clk 0:00:53]} 116. Bxg5 {[%clk 0:00:08]}  Bc3 {[%clk 0:00:46]} 117. Bd8 {[%clk 0:00:08]}  Bb4 {[%clk 0:00:46]} 118. Bxb6 {[%clk 0:00:08]}  Kg6 {[%clk 0:00:46]} 119. Bc7 {[%clk 0:00:08]}  Bd3 {[%clk 0:00:45]} 120. Be5 {[%clk 0:00:08]}  Kh6 {[%clk 0:00:42]} 121. Kf2 {[%clk 0:00:08]}  Kg6 {[%clk 0:00:43]} 122. Ke3 {[%clk 0:00:06]}  Bf1 {[%clk 0:00:43]} 123. Bd6 {[%clk 0:00:05]}  Kf6 {[%clk 0:00:41]} 124. Kf2 {[%clk 0:00:05]}  Bd3 {[%clk 0:00:41]} 125. Bf4 {[%clk 0:00:05]}  Kg6 {[%clk 0:00:41]} 126. Bg5 {[%clk 0:00:05]}  Be4 {[%clk 0:00:38]} 127. Bd8 {[%clk 0:00:06]}  Bd3 {[%clk 0:00:38]} 128. Ke3 {[%clk 0:00:06]}  Bf1 {[%clk 0:00:38]} 129. Bc7 {[%clk 0:00:06]}  Kg7 {[%clk 0:00:36]} 130. Kf4 {[%clk 0:00:04]}  Kf6 {[%clk 0:00:36]} 131. Bd8+ {[%clk 0:00:04]}  Ke6 {[%clk 0:00:35]} 132. Kg5 {[%clk 0:00:04]}  Bd3 {[%clk 0:00:34]} 133. Bc7 {[%clk 0:00:04]}  Kf7 {[%clk 0:00:31]} 134. Bf4 {[%clk 0:00:04]}  Bc3 {[%clk 0:00:31]} 135. h5 {[%clk 0:00:00]}  Bf6+ {[%clk 0:00:31]} 136. Kh6 {[%clk 0:00:01]}  Be2 {[%clk 0:00:31]} 137. Kh7 {[%clk 0:00:02]}  Bxh5 {[%clk 0:00:31]} 138. Bc7 {[%clk 0:00:02]}  Bg7 {[%clk 0:00:30]} 0-1


[Site "https://www.chess.com"]